bitfinex-derivatives/quotes_SOLF0:USTF0_20250404
["timestamp","ask_amount","ask_price","bid_price","bid_amount"]
[1743777608242,0.06498192,116.63,116.62,8.6398025]
[1743777608417,0.06498192,116.63,116.62,0.0617025]
[1743777608821,0.06498192,116.63,116.62,8.6398025]
[1743777609021,38.52,116.72,116.62,47.1617025]
[1743777609224,38.52,116.72,116.64,61.77932443]
[1743777609424,8.5731,116.69,116.65,38.52]
[1743777609618,38.52,116.72,116.65,38.52]
[1743777609819,8.5736,116.69,116.66,8.5747]
[1743777610018,0.0601959,116.69,116.65,38.52]
[1743777610215,0.0601959,116.69,116.66,0.05724516]
[1743777612428,8.6331959,116.69,116.67,8.5739]
[1743777612621,0.0601959,116.69,116.67,8.5739]
[1743777613025,0.0601959,116.69,116.66,0.05724516]
[1743777615028,0.0601959,116.69,116.67,38.5]
[1743777615538,0.0601959,116.69,116.66,0.05724516]
[1743777616133,0.0601959,116.69,116.66,8.63234516]
[1743777616331,0.0601959,116.69,116.66,0.05724516]
[1743777617830,8.6333959,116.69,116.66,8.63194516]
[1743777618431,0.0601959,116.69,116.66,0.05724516]
[1743777618852,100.27932443,116.68,116.57,370.35932443]
[1743777619128,61.77932443,116.66,116.57,38.5]
[1743777619329,61.77932443,116.64,116.53,61.77932443]
[1743777619531,61.77932443,116.62,116.51,61.77932443]
[1743777619827,61.77932443,116.6,116.5,38.5]
[1743777620028,8.583,116.56,116.55,0.06590189]
[1743777620428,8.583,116.56,116.49,288.08292008]
[1743777620429,38.5,116.56,116.49,288.08292008]
[1743777620628,100.27932443,116.56,116.49,288.08292008]
[1743777620827,61.77932443,116.54,116.49,288.08292008]
[1743777621027,8.5869,116.5,116.49,288.08292008]
[1743777621430,8.5886,116.48,116.44,8.591]
[1743777621732,0.06339032,116.51,116.44,8.591]
[1743777621928,38.5,116.5,116.45,0.06217419]
[1743777622228,0.06498882,116.49,116.39,38.5]
[1743777622428,61.77932443,116.48,116.46,0.06563745]
[1743777622631,38.5,116.47,116.39,38.5]
[1743777623533,38.5,116.47,116.42,8.5922]
[1743777623730,0.05613546,116.44,116.42,0.06456057]
[1743777624227,61.77932443,116.52,116.43,38.5]
[1743777624433,38.5,116.51,116.43,38.5]
[1743777624630,38.5,116.51,116.46,8.5898]
[1743777624932,34.56995041,116.54,116.46,38.5]
[1743777625235,34.56995041,116.54,116.46,100.27932443]
[1743777625436,0.06276094,116.51,116.49,8.64648465]
[1743777625636,0.06276094,116.51,116.49,0.05928465]
[1743777625835,0.06276094,116.51,116.5,8.5869]
[1743777626034,0.06276094,116.51,116.49,38.57928465]
[1743777626534,0.06276094,116.51,116.49,47.16648465]
[1743777627136,38.52,116.5,116.49,0.05928465]
[1743777627737,38.52,116.5,116.49,8.64688465]
[1743777628138,38.52,116.5,116.49,0.05928465]
[1743777628740,0.06276094,116.51,116.49,0.05928465]
[1743777629736,0.06276094,116.51,116.5,8.5869]
[1743777630237,61.77932443,116.58,116.49,0.05928465]
[1743777630480,38.52,116.57,116.54,8.5839]
[1743777630834,38.52,116.57,116.49,61.77932443]
[1743777631232,61.77932443,116.56,116.46,61.77932443]
[1743777631437,61.84066652,116.54,116.51,0.05548817]
[1743777631732,38.52,116.53,116.51,0.05548817]
[1743777631931,38.52,116.53,116.45,38.52]
[1743777632341,38.52,116.53,116.48,8.588]
[1743777632342,8.5854,116.52,116.48,8.588]
[1743777632538,38.52,116.53,116.45,38.52]
[1743777632739,38.52,116.53,116.46,61.77932443]
[1743777633041,0.05825399,116.51,116.48,0.05700944]
[1743777633443,0.05825399,116.51,116.49,8.5876]
[1743777633842,0.05825399,116.51,116.48,0.05700944]
[1743777634441,0.05825399,116.51,116.49,8.5871]
[1743777635648,0.05825399,116.51,116.5,8.5869]
[1743777635840,0.05825399,116.51,116.48,0.05700944]
[1743777636147,0.05825399,116.51,116.48,8.64500944]
[1743777636744,0.05825399,116.51,116.48,0.05700944]
[1743777637345,0.05825399,116.51,116.5,8.5869]
[1743777637645,0.05825399,116.51,116.48,0.05700944]
[1743777638444,38.54,116.5,116.48,0.05700944]
[1743777639143,47.1273,116.5,116.48,0.05700944]
[1743777639743,0.05825399,116.51,116.48,0.05700944]
[1743777640247,0.05825399,116.51,116.5,8.5869]
[1743777641244,0.05825399,116.51,116.49,8.5872]
[1743777641450,0.05825399,116.51,116.48,0.05700944]
[1743777642245,0.05825399,116.51,116.49,8.5871]
[1743777642449,0.05825399,116.51,116.48,0.05700944]
[1743777643049,0.05825399,116.51,116.5,8.5869]
[1743777643349,0.05825399,116.51,116.48,0.05700944]
[1743777643838,0.05825399,116.51,116.5,8.5869]
[1743777644446,0.05825399,116.51,116.49,8.5873]
[1743777644644,0.05825399,116.51,116.48,0.05700944]
[1743777645040,8.64485399,116.51,116.48,0.05700944]
[1743777645251,0.05825399,116.51,116.48,0.05700944]
[1743777645651,0.05825399,116.51,116.49,8.5873]
[1743777646147,0.05825399,116.51,116.48,0.05700944]
[1743777646346,38.57825399,116.51,116.48,0.05700944]
[1743777646544,8.5875,116.5,116.48,0.05700944]
[1743777646741,38.57825399,116.51,116.48,0.05700944]
[1743777647248,0.05825399,116.51,116.48,0.05700944]
[1743777647855,0.05825399,116.51,116.5,8.5869]
[1743777648349,0.05825399,116.51,116.48,0.05700944]
[1743777649254,8.64495399,116.51,116.48,0.05700944]
[1743777649648,0.05825399,116.51,116.48,8.64530944]
[1743777649846,0.05825399,116.51,116.48,0.05700944]
[1743777650153,0.05825399,116.51,116.48,8.64530944]
[1743777650353,8.587,116.5,116.48,0.05700944]
[1743777650754,0.05825399,116.51,116.48,0.05700944]
[1743777653060,8.5876,116.49,116.48,0.05700944]
[1743777654164,0.05825399,116.51,116.48,0.05700944]
[1743777654665,0.05825399,116.51,116.5,8.5869]
[1743777654968,0.05825399,116.51,116.48,0.05700944]
[1743777655161,0.05825399,116.51,116.49,8.5871]
[1743777655358,0.05825399,116.51,116.48,0.05700944]
[1743777655867,8.64495399,116.51,116.48,8.64540944]
[1743777656662,0.05825399,116.51,116.49,8.5872]
[1743777656862,0.05825399,116.51,116.48,0.05700944]
[1743777657166,0.05825399,116.51,116.49,8.5871]
[1743777657365,0.05825399,116.51,116.48,0.05700944]
[1743777658365,0.05825399,116.51,116.5,8.5869]
[1743777659067,0.05825399,116.51,116.49,8.5872]
[1743777659564,0.05825399,116.51,116.48,8.64500944]
[1743777659957,8.64475399,116.51,116.48,8.64500944]
[1743777660156,0.05825399,116.51,116.48,0.05700944]
[1743777660462,8.5876,116.49,116.48,0.05700944]
[1743777660957,8.5873,116.5,116.48,0.05700944]
[1743777661161,0.05825399,116.51,116.48,0.05700944]
[1743777661868,0.05825399,116.51,116.48,8.64510944]
[1743777662267,0.05825399,116.51,116.48,0.05700944]
[1743777662468,0.05825399,116.51,116.5,8.5869]
[1743777665165,30.45402602,116.55,116.54,8.584]
[1743777666266,30.45402602,116.55,116.53,8.5842]
[1743777666564,30.45402602,116.55,116.53,8.63939947]
[1743777666871,30.45402602,116.55,116.54,8.584]
[1743777667368,47.7022668,116.59,116.54,8.58]
[1743777667569,47.7022668,116.59,116.55,38.19457456]
[1743777667864,47.7022668,116.59,116.56,38.52]
[1743777668372,120.43418804,116.6,116.57,38.19457456]
[1743777668568,397.83211813,116.61,116.59,38.19457456]
[1743777668764,368.87251813,116.61,116.6,47.0795]
[1743777668969,341.63378415,116.61,116.6,47.0795]
[1743777669162,327.64298415,116.61,116.6,47.0795]
[1743777669361,313.75458415,116.61,116.6,47.0795]
[1743777670564,0.05916602,116.61,116.6,38.5]
[1743777670767,0.05916602,116.61,116.59,0.05816478]
[1743777671173,8.5795,116.6,116.59,0.05816478]
[1743777671374,0.05916602,116.61,116.59,0.05816478]
[1743777671773,8.5795,116.6,116.59,0.05816478]
[1743777672370,8.5825,116.56,116.54,288.08292008]
[1743777672572,76.69457456,116.6,116.54,288.08292008]
[1743777672777,47.0821,116.57,116.54,288.08292008]
[1743777673273,8.5826,116.56,116.54,288.08292008]
[1743777673470,38.56141232,116.57,116.54,0.05499491]
[1743777674174,38.19457456,116.56,116.54,0.05499491]
[1743777674373,8.5862,116.51,116.5,288.08292008]
[1743777674574,38.19457456,116.56,116.5,288.08292008]
[1743777674773,38.48,116.56,116.5,288.08292008]
[1743777674971,8.5846,116.54,116.5,288.08292008]
[1743777675176,8.5846,116.54,116.48,38.48]
[1743777675377,38.48,116.56,116.48,38.48]
[1743777675674,8.64896014,116.52,116.5,0.06182599]
[1743777676204,0.06346014,116.52,116.5,0.06182599]
[1743777676772,38.19457456,116.51,116.41,39.68810474]
[1743777676977,38.19457456,116.51,116.41,38.19457456]
[1743777677178,8.5894,116.47,116.43,8.5917]
[1743777677378,38.48,116.48,116.41,38.19457456]
[1743777677680,8.5893,116.47,116.43,8.5917]
[1743777677882,0.05857547,116.46,116.43,8.6562415]
[1743777678077,0.05857547,116.46,116.43,0.0645415]
[1743777678883,8.64847547,116.46,116.43,0.0645415]
[1743777679385,8.64877547,116.46,116.43,0.0645415]
[1743777679581,0.05857547,116.46,116.43,0.0645415]
[1743777680180,38.5,116.45,116.43,0.0645415]
[1743777680609,8.5913,116.44,116.43,0.0645415]
[1743777680878,47.0913,116.44,116.43,0.0645415]
[1743777681282,38.5,116.44,116.43,0.0645415]
[1743777681996,38.5,116.44,116.34,38.19457456]
[1743777682489,8.5946,116.4,116.34,38.19457456]
[1743777682990,8.5952,116.39,116.33,38.5]
[1743777683288,0.06033926,116.38,116.36,8.65192034]
[1743777683788,0.06033926,116.38,116.36,0.05482034]
[1743777685390,8.5965,116.37,116.36,0.05482034]
[1743777686088,46.79457456,116.37,116.27,356.0]
[1743777686282,38.19457456,116.35,116.27,356.0]
[1743777686480,8.6007,116.32,116.28,8.6028]
[1743777686884,8.5998,116.33,116.27,356.0]
[1743777687084,76.69457456,116.44,116.32,38.19457456]
[1743777687285,38.19457456,116.44,116.33,38.5]
[1743777687589,38.5,116.44,116.39,8.5949]
[1743777687789,38.19457456,116.44,116.37,38.5]
[1743777687984,38.5,116.43,116.37,38.5]
[1743777688188,0.05718105,116.42,116.39,0.05556315]
[1743777689595,38.25175561,116.42,116.33,309.12]
[1743777689789,62.22972228,116.41,116.35,8.5979]
[1743777689984,38.52,116.4,116.31,38.52]
[1743777690593,47.1143,116.4,116.31,38.52]
[1743777690794,0.05983122,116.37,116.35,8.5978]
[1743777691236,0.05983122,116.37,116.35,0.06208383]
[1743777692298,0.05983122,116.37,116.35,8.66008383]
[1743777692487,0.05983122,116.37,116.35,0.06208383]
[1743777692687,38.52,116.36,116.29,356.0]
[1743777692894,38.52,116.36,116.27,38.52]
[1743777693186,8.5983,116.35,116.31,8.6005]
[1743777693388,62.22972228,116.39,116.3,38.52]
[1743777693589,38.52,116.39,116.36,8.5972]
[1743777694085,38.52,116.39,116.37,8.5965]
[1743777694086,38.5750331,116.39,116.37,8.5965]
[1743777694789,0.0550331,116.39,116.36,0.04618691]
[1743777695199,38.52,116.38,116.36,0.04618691]
[1743777696596,47.1165,116.38,116.36,0.04618691]
[1743777697189,8.5965,116.37,116.36,0.04618691]
[1743777697793,38.52,116.38,116.36,0.04618691]
[1743777698396,0.0550331,116.39,116.36,0.04618691]
[1743777698893,8.5958,116.38,116.36,0.04618691]
[1743777699392,0.0550331,116.39,116.37,8.5965]
[1743777699593,0.0550331,116.39,116.36,0.04618691]
[1743777700098,0.0550331,116.39,116.38,8.5958]
[1743777700892,38.52,116.46,116.41,8.5931]
[1743777701093,100.74972228,116.49,116.39,38.52]
[1743777701299,8.5899,116.46,116.43,8.5915]
[1743777701801,100.74972228,116.49,116.43,8.5915]
[1743777701802,8.5895,116.47,116.43,8.5915]
[1743777702096,0.06158168,116.46,116.43,0.05530773]
[1743777702901,0.06158168,116.46,116.45,8.5906]
[1743777703895,8.168e-05,116.46,116.45,55.6706]
[1743777704197,38.5,116.54,116.45,47.08]
[1743777704400,38.5,116.54,116.46,62.22972228]
[1743777704996,371.48972228,116.58,116.48,62.22972228]
[1743777705198,62.22972228,116.6,116.53,8.5843]
[1743777705499,0.05407595,116.54,116.49,38.5]
[1743777705800,0.06432947,116.53,116.5,0.05585491]
[1743777706295,38.5,116.58,116.5,0.05585491]
[1743777706296,38.5,116.58,116.5,62.28557719]
[1743777706501,310.75311366,116.66,116.52,62.22972228]
[1743777706797,38.5,116.61,116.54,62.22972228]
[1743777707296,38.48,116.63,116.54,62.22972228]
[1743777707498,0.05731469,116.59,116.56,0.05965965]
[1743777707705,0.05731469,116.59,116.56,38.53965965]
[1743777707897,0.05731469,116.59,116.56,38.48]
[1743777708095,0.05731469,116.59,116.56,38.54596204]
[1743777708296,0.05731469,116.59,116.56,100.77568432]
[1743777708603,38.48,116.67,116.58,62.22972228]
[1743777708999,8.577,116.64,116.6,8.5791]
[1743777709302,38.48,116.67,116.59,38.48]
[1743777709496,62.22972228,116.7,116.6,62.22972228]
[1743777709692,0.06565434,116.64,116.62,0.05503927]
[1743777710097,38.46,116.67,116.59,38.48]
[1743777710314,0.05760983,116.64,116.62,0.05507697]
[1743777710795,38.51760983,116.64,116.57,8.5815]
[1743777711000,38.51760983,116.64,116.56,38.46]
[1743777711205,8.5781,116.62,116.58,8.5806]
[1743777711503,38.46,116.64,116.56,38.46]
[1743777712100,38.46,116.64,116.59,0.06150756]
[1743777712101,0.0606071,116.61,116.59,0.06150756]
[1743777712795,0.0606071,116.61,116.59,8.64160756]
[1743777712995,62.22972228,116.7,116.59,100.75122984]
[1743777713197,38.46,116.69,116.59,100.68972228]
[1743777713393,62.22972228,116.72,116.61,62.22972228]
[1743777713596,38.46,116.71,116.62,38.46]
[1743777714001,371.14972228,116.76,116.65,62.22972228]
[1743777714302,0.05861133,116.68,116.66,38.46]
[1743777714496,8.5707,116.72,116.68,8.5737]
[1743777714696,38.46,116.74,116.66,38.46]
[1743777714902,0.06448104,116.68,116.66,38.52522833]
[1743777715099,8.5711,116.72,116.67,8.5741]
[1743777715293,0.06016644,116.68,116.66,38.52423534]
[1743777715499,8.5711,116.72,116.68,8.5736]
[1743777715698,8.5715,116.71,116.66,38.52423534]
[1743777715898,100.68972228,116.74,116.66,38.46]
[1743777716096,8.5735,116.69,116.67,0.06475164]
[1743777717105,8.63388257,116.7,116.67,0.06475164]
[1743777717299,0.06138257,116.7,116.67,0.06475164]
[1743777717605,0.06138257,116.7,116.67,8.63875164]
[1743777718008,0.06138257,116.7,116.67,0.06475164]
[1743777718607,0.06138257,116.7,116.67,8.63865164]
[1743777718839,0.06138257,116.7,116.67,0.06475164]
[1743777719207,0.06138257,116.7,116.67,8.63875164]
[1743777719407,0.06138257,116.7,116.67,0.06475164]
[1743777719803,0.06138257,116.7,116.69,8.5729]
[1743777720006,0.06138257,116.7,116.67,0.06475164]
[1743777720207,0.06138257,116.7,116.68,8.5734]
[1743777720716,0.06138257,116.7,116.67,8.63885164]
[1743777721013,0.06138257,116.7,116.67,0.06475164]
[1743777721702,8.5737,116.68,116.67,0.06475164]
[1743777723005,0.06138257,116.7,116.67,38.46475164]
[1743777723217,0.06138257,116.7,116.69,8.5729]
[1743777723404,0.06138257,116.7,116.67,38.46475164]
[1743777724301,0.06138257,116.7,116.67,0.06475164]
[1743777724608,8.5733,116.69,116.67,0.06475164]
[1743777724808,0.06138257,116.7,116.67,0.06475164]
[1743777726109,8.5733,116.69,116.67,0.06475164]
[1743777726406,0.06138257,116.7,116.67,0.06475164]
[1743777727101,0.06138257,116.7,116.68,38.4]
[1743777727609,0.06138257,116.7,116.68,46.9733]
[1743777727803,0.06138257,116.7,116.68,38.4]
[1743777728315,325.7087,116.81,116.68,38.4]
[1743777728614,8.5681,116.76,116.72,8.5703]
[1743777728820,100.62972228,116.8,116.72,38.4]
[1743777729112,8.5685,116.75,116.72,46.9703]
[1743777729314,62.22972228,116.78,116.69,38.4]
[1743777729614,0.05740626,116.75,116.72,0.0622688]
[1743777729816,62.22972228,116.74,116.67,38.4]
[1743777730109,62.22972228,116.74,116.65,38.4]
[1743777730811,8.5725,116.7,116.66,8.5747]
[1743777731011,0.06021843,116.71,116.68,0.06354915]
[1743777731712,0.06021843,116.71,116.68,8.63654915]
[1743777732405,0.06021843,116.71,116.68,0.06354915]
[1743777733313,8.5725,116.7,116.68,0.06354915]
[1743777733817,0.06021843,116.71,116.68,0.06354915]
[1743777734410,8.5729,116.69,116.68,0.06354915]
[1743777734816,0.06021843,116.71,116.68,0.06354915]
[1743777735016,0.06021843,116.71,116.68,8.63664915]
[1743777735321,0.06021843,116.71,116.68,0.06354915]
[1743777736016,8.5729,116.69,116.68,0.06354915]
[1743777736215,0.06021843,116.71,116.68,0.06354915]
[1743777736519,8.5725,116.7,116.68,0.06354915]
[1743777736836,0.06021843,116.71,116.68,0.06354915]
[1743777738321,0.06021843,116.71,116.68,4.915e-05]
[1743777738322,62.22972228,116.7,116.68,4.915e-05]
[1743777738520,38.38,116.69,116.68,4.915e-05]
[1743777738823,46.9529,116.69,116.68,4.915e-05]
[1743777739024,46.96,116.69,116.58,38.38]
[1743777739223,62.22972228,116.67,116.58,38.38]
[1743777739423,38.38,116.66,116.6,8.5795]
[1743777739623,38.38,116.66,116.58,38.38]
[1743777739824,8.5769,116.64,116.58,38.38]
[1743777740024,38.38,116.66,116.58,38.38]
[1743777740325,0.06510591,116.62,116.6,0.05501314]
[1743777740520,38.38,116.69,116.61,46.9588]
[1743777740724,0.06152385,116.62,116.6,38.43655092]
[1743777740925,62.22972228,116.7,116.6,38.38]
[1743777741224,100.60972228,116.7,116.6,38.38]
[1743777741525,100.60972228,116.7,116.61,8.5784]
[1743777741824,62.22972228,116.68,116.61,8.5784]
[1743777742019,0.05463721,116.67,116.64,0.05539076]
[1743777742628,346.9,116.74,116.65,62.22972228]
[1743777742828,38.38,116.74,116.66,38.38]
[1743777743127,100.60972228,116.74,116.66,38.38]
[1743777743320,62.22972228,116.72,116.61,62.22972228]
[1743777743524,8.5734,116.69,116.63,38.38]
[1743777743726,0.05689117,116.68,116.65,0.06115274]
[1743777743921,100.60972228,116.68,116.65,0.06115274]
[1743777744120,100.66514793,116.68,116.65,0.06115274]
[1743777744623,100.66514793,116.68,116.65,5.274e-05]
[1743777745016,38.43542565,116.68,116.65,5.274e-05]
[1743777745220,8.5751,116.66,116.65,5.274e-05]
[1743777745426,62.22972228,116.66,116.63,275.24518222]
[1743777745622,70.80632228,116.64,116.63,19.82766274]
[1743777745828,70.80632228,116.64,116.63,6.274e-05]
[1743777746125,70.80972228,116.64,116.57,8.5814]
[1743777746325,62.22972228,116.64,116.55,78.04097169]
[1743777746627,0.06549715,116.61,116.58,0.05899114]
[1743777746829,8.5796,116.6,116.58,0.05899114]
[1743777747127,0.06549715,116.61,116.58,0.05899114]
[1743777747329,8.5803,116.59,116.58,0.05899114]
[1743777748528,0.06549715,116.61,116.58,0.05899114]
[1743777749229,8.64479715,116.61,116.58,0.05899114]
[1743777749933,0.06549715,116.61,116.58,0.05899114]
[1743777750431,11.8655392,116.59,116.58,0.05899114]
[1743777750831,11.8655392,116.59,116.55,38.38]
[1743777751026,11.8655392,116.59,116.52,38.38]
[1743777751331,50.2455392,116.59,116.5,100.60972228]
[1743777751530,8.5814,116.58,116.55,8.5831]
[1743777751760,11.8655392,116.59,116.52,62.22972228]
[1743777751927,0.05811855,116.58,116.55,0.064277]
[1743777752124,0.05811855,116.58,116.55,8.647177]
[1743777752330,0.05811855,116.58,116.55,0.064277]
[1743777753622,0.05811855,116.58,116.56,8.5825]
[1743777755139,8.63931855,116.58,116.55,8.647077]
[1743777755930,0.05811855,116.58,116.55,0.064277]
[1743777756833,0.05811855,116.58,116.56,8.5822]
[1743777757029,0.05811855,116.58,116.55,0.064277]
[1743777758130,0.05811855,116.58,116.56,8.582]
[1743777758336,0.05811855,116.58,116.55,0.064277]
[1743777758734,8.5821,116.57,116.55,0.064277]
[1743777758928,0.05811855,116.58,116.55,0.064277]
[1743777759131,8.5821,116.57,116.55,0.064277]
[1743777759635,0.05811855,116.58,116.55,0.064277]
[1743777760339,0.05811855,116.58,116.56,8.5825]
[1743777760540,0.05811855,116.58,116.55,0.064277]
[1743777760837,8.5824,116.57,116.55,0.064277]
[1743777761240,0.05811855,116.58,116.55,0.064277]
[1743777761939,0.05811855,116.58,116.56,8.5825]
[1743777762439,0.05811855,116.58,116.57,8.5817]
[1743777762835,0.05811855,116.58,116.55,0.064277]
[1743777763043,0.05811855,116.58,116.57,8.5817]
[1743777763540,0.05811855,116.58,116.55,38.464277]
[1743777763942,0.05811855,116.58,116.55,0.064277]
[1743777764542,8.5823,116.57,116.55,0.064277]
[1743777765040,8.5825,116.56,116.55,0.064277]
[1743777765237,46.9825,116.56,116.55,0.064277]
[1743777765441,38.4,116.56,116.47,38.4]
[1743777765740,38.14431981,116.53,116.45,38.38]
[1743777765942,38.38,116.52,116.45,38.38]
[1743777766132,38.38,116.52,116.42,38.14431981]
[1743777766334,38.38,116.52,116.42,76.52431981]
[1743777766532,0.06192028,116.48,116.46,0.05563045]
[1743777766737,8.5896,116.47,116.46,0.05563045]
[1743777766942,0.06192028,116.48,116.46,0.05563045]
[1743777767343,0.06192028,116.48,116.46,8.64483045]
[1743777767536,0.06192028,116.48,116.46,0.05563045]
[1743777767941,0.06192028,116.48,116.47,8.5891]
[1743777768643,0.06192028,116.48,116.46,8.64513045]
[1743777768944,0.06192028,116.48,116.47,8.5891]
[1743777769647,0.06192028,116.48,116.46,8.64513045]
[1743777769942,0.06192028,116.48,116.46,0.05563045]
[1743777770539,0.06192028,116.48,116.44,38.14431981]
[1743777770744,0.06192028,116.48,116.47,8.5891]
[1743777771136,0.06192028,116.48,116.47,8.49421386]
[1743777772242,0.06192028,116.48,116.46,76.59848567]
[1743777772947,0.06192028,116.48,116.47,8.5891]
[1743777773450,3.92e-05,116.49,116.48,8.5884]
[1743777773752,127.11689296,116.51,116.48,38.14431981]
[1743777773950,138.67297415,116.52,116.5,38.14431981]
[1743777774144,138.67297415,116.52,116.51,8.5862]
[1743777776355,0.05808464,116.53,116.51,8.5862]
[1743777776548,0.05808464,116.53,116.52,8.5854]
[1743777776748,0.05808464,116.53,116.5,0.06441956]
[1743777777851,126.78252708,116.59,116.52,38.14431981]
[1743777778045,288.90202948,116.59,116.58,8.581]
[1743777778750,288.90202948,116.59,116.55,38.4]
[1743777779160,0.06204008,116.58,116.56,0.06515323]
[1743777780254,38.4,116.57,116.49,38.4]
[1743777780553,38.4,116.57,116.48,703.08431981]
[1743777780554,38.14431981,116.56,116.48,347.34]
[1743777780754,38.4,116.57,116.48,385.48431981]
[1743777781151,38.4,116.6,116.5,38.14431981]
[1743777781351,0.05919779,116.54,116.51,38.4549474]
[1743777781557,38.4,116.6,116.51,38.4]
[1743777781856,0.05694928,116.54,116.51,38.46017348]
[1743777782055,76.54431981,116.6,116.51,38.4]
[1743777782253,38.4,116.6,116.51,38.46144842]
[1743777782457,0.06386056,116.54,116.51,38.4]
[1743777782756,269.47307142,116.59,116.54,0.05696348]
[1743777782952,0.06049504,116.54,116.51,38.4]
[1743777783151,38.4,116.57,116.51,0.05412001]
[1743777783356,0.05647562,116.54,116.48,46.988]
[1743777783551,38.45647562,116.54,116.53,0.05565399]
[1743777783758,76.60079543,116.54,116.44,38.14431981]
[1743777783960,8.5878,116.49,116.44,38.4]
[1743777784157,76.54431981,116.54,116.44,38.4]
[1743777784358,8.5893,116.47,116.4,394.14431981]
[1743777784556,76.54431981,116.48,116.39,38.4]
[1743777784757,0.05948234,116.45,116.42,0.05618705]
[1743777784959,38.45948234,116.45,116.42,0.05618705]
[1743777785261,38.4,116.45,116.42,0.05618705]
[1743777785456,38.45443408,116.45,116.42,0.05618705]
[1743777786263,0.05443408,116.45,116.42,0.05618705]
[1743777787064,0.05443408,116.45,116.42,38.45618705]
[1743777787758,38.4,116.51,116.44,38.14431981]
[1743777787956,210.4664,116.63,116.42,38.45618705]
[1743777787957,76.54431981,116.56,116.46,38.14431981]
[1743777788161,38.4,116.57,116.46,38.14431981]
[1743777788359,34.75252185,116.47,116.46,38.14431981]
[1743777788560,269.68706137,116.48,116.47,8.5891]
[1743777788764,288.90202948,116.49,116.47,8.58]
[1743777789063,288.96085345,116.49,116.48,38.4]
[1743777789263,288.96085345,116.49,116.48,46.9884]
[1743777789457,187.45542867,116.49,116.48,55.5684]
[1743777789662,128.07622867,116.49,116.48,93.71271981]
[1743777789956,101.59442867,116.49,116.48,93.71271981]
[1743777790274,88.61232867,116.49,116.48,8.5884]
[1743777790759,88.61232867,116.49,116.47,38.4]
[1743777791164,88.61232867,116.49,116.48,38.14431981]
[1743777791364,0.05882397,116.49,116.48,46.73271981]
[1743777791566,8.5834,116.55,116.48,46.72431981]
[1743777791766,38.4,116.58,116.48,62.04186947]
[1743777792464,38.4,116.58,116.49,8.5871]
[1743777792665,0.06496588,116.54,116.52,0.0556987]
[1743777793562,8.5847,116.53,116.52,0.0556987]
[1743777794868,8.64926588,116.54,116.52,0.0556987]
[1743777795067,0.06496588,116.54,116.52,0.0556987]
[1743777795368,0.06496588,116.54,116.52,8.6406987]
[1743777795581,0.06496588,116.54,116.52,0.0556987]
[1743777796607,8.64926588,116.54,116.52,0.0556987]
[1743777796769,0.06496588,116.54,116.52,0.0556987]
[1743777797270,8.5847,116.53,116.52,0.0556987]
[1743777798164,0.06496588,116.54,116.52,0.0556987]
[1743777798368,0.06496588,116.54,116.48,8.5883]
[1743777798568,8.5863,116.51,116.46,391.07111402]
[1743777798769,62.04186947,116.55,116.46,391.07111402]
[1743777798970,38.38,116.56,116.49,8.5871]
[1743777799570,0.05997186,116.54,116.51,0.06265618]
[1743777800165,62.10184133,116.54,116.51,0.06265618]
[1743777800363,38.38,116.53,116.51,0.06265618]
[1743777800568,62.10184133,116.54,116.51,0.06265618]
[1743777800569,0.05997186,116.54,116.51,0.06265618]
[1743777801369,8.5854,116.52,116.51,0.06265618]
[1743777804875,38.43997186,116.54,116.51,0.06265618]
[1743777805973,8.5854,116.52,116.51,0.06265618]
[1743777807571,38.43997186,116.54,116.51,0.06265618]
[1743777807964,0.05997186,116.54,116.51,0.06265618]
[1743777808774,0.00427316,116.54,116.52,38.38]
[1743777809171,0.00427316,116.54,116.53,8.5847]
[1743777810172,0.00427316,116.54,116.51,0.06265618]
[1743777810572,62.04186947,116.53,116.51,0.06265618]
[1743777810870,38.38,116.52,116.46,42.13447643]
[1743777811071,8.5877,116.49,116.46,50.72377643]
[1743777811275,8.5877,116.49,116.46,42.13447643]
[1743777811593,38.38,116.52,116.44,571.53598989]
[1743777811774,0.05587789,116.49,116.46,0.06107865]
[1743777811970,8.64387789,116.49,116.46,0.06107865]
[1743777812170,0.05587789,116.49,116.46,0.06107865]
[1743777812868,38.2197872,116.48,116.46,0.06107865]
[1743777813368,46.7997872,116.48,116.42,42.13447643]